fUST/lending_fUST_20260525
["ID","MTS","AMOUNT","RATE_DAILY","PERIOD"]
[422977336,1779697852000,-500.0,0.00012328,2]
[422977334,1779697852000,-703.8,0.00012328,2]
[422977330,1779697852000,-292.688,0.000123,2]
[422977325,1779697852000,-500.0,0.00012054,2]
[422977319,1779697852000,-2458.36,0.00012054,2]
[422977323,1779697852000,-500.0,0.00012054,2]
[422977320,1779697852000,-5088.12,0.00012054,2]
[422977322,1779697852000,-1376.44,0.00012054,2]
[422977327,1779697852000,-1590.83,0.00012054,2]
[422977408,1779697853000,-762.647372,0.00012329,2]
[422977403,1779697853000,-856.54,0.00012328,2]
[422977401,1779697853000,-1376.44,0.00012328,2]
[422977400,1779697853000,-635.84,0.00012328,2]
[422977404,1779697853000,-500.0,0.00012328,2]
[422977399,1779697853000,-5088.12,0.00012328,2]
[422977395,1779697853000,-500.0,0.00012328,2]
[422977405,1779697853000,-4115.35,0.00012328,2]
[422977398,1779697853000,-2458.36,0.00012328,2]
[422977412,1779697853000,-762.647372,0.00012329,2]
[422977406,1779697853000,-1590.83,0.00012328,2]
[422977402,1779697853000,-403.56,0.00012328,2]
[422977413,1779697853000,-762.647372,0.00012329,2]
[422977409,1779697853000,-762.647372,0.00012329,2]
[422977407,1779697853000,-762.647372,0.00012329,2]
[422977417,1779697853000,-762.647372,0.00012329,2]
[422977419,1779697853000,-762.647372,0.00012329,2]
[422977418,1779697853000,-762.647372,0.00012329,2]
[422977411,1779697853000,-762.647372,0.00012329,2]
[422977410,1779697853000,-762.647372,0.00012329,2]
[422977414,1779697853000,-762.647372,0.00012329,2]
[422977416,1779697853000,-762.647372,0.00012329,2]
[422977421,1779697853000,-762.647372,0.00012329,2]
[422977431,1779697853000,-500.0,0.00012602,2]
[422977425,1779697853000,-762.647372,0.00012329,2]
[422977396,1779697853000,-1760.86,0.00012328,2]
[422977415,1779697853000,-762.647372,0.00012329,2]
[422977397,1779697853000,-625.28,0.00012328,2]
[422977381,1779697853000,-1364.15,0.00012328,2]
[422977389,1779697853000,-1099.99,0.00012328,2]
[422977374,1779697853000,-2964.55,0.00012328,2]
[422977375,1779697853000,-853.49,0.00012328,2]
[422977376,1779697853000,-1731.17,0.00012328,2]
[422977378,1779697853000,-500.0,0.00012328,2]
[422977372,1779697853000,-1510.48,0.00012328,2]
[422977367,1779697853000,-677.31,0.00012328,2]
[422977373,1779697853000,-964.48,0.00012328,2]
[422977377,1779697853000,-4179.72,0.00012328,2]
[422977368,1779697853000,-500.0,0.00012328,2]
[422977369,1779697853000,-615.72,0.00012328,2]
[422977371,1779697853000,-500.0,0.00012328,2]
[422977370,1779697853000,-4357.7,0.00012328,2]
[422977394,1779697853000,-17098.84,0.00012328,2]
[422977379,1779697853000,-901.22,0.00012328,2]
[422977380,1779697853000,-751.98,0.00012328,2]
[422977383,1779697853000,-1276.56,0.00012328,2]
[422977382,1779697853000,-848.43,0.00012328,2]
[422977388,1779697853000,-2485.17,0.00012328,2]
[422977427,1779697853000,-204.0,0.00012356,2]
[422977386,1779697853000,-500.0,0.00012328,2]
[422977384,1779697853000,-2065.05,0.00012328,2]
[422977385,1779697853000,-1939.88,0.00012328,2]
[422977391,1779697853000,-501.61,0.00012328,2]
[422977393,1779697853000,-689.81,0.00012328,2]
[422977390,1779697853000,-1210.42,0.00012328,2]
[422977392,1779697853000,-500.0,0.00012328,2]
[422977387,1779697853000,-1429.06,0.00012328,2]
[422977420,1779697853000,-762.647372,0.00012329,2]
[422977469,1779697853000,-2964.55,0.00012602,2]
[422977428,1779697853000,-801.0163,0.00012602,2]
[422977455,1779697853000,-620.28,0.00012602,2]
[422977456,1779697853000,-500.0,0.00012602,2]
[422977460,1779697853000,-1257.68,0.00012602,2]
[422977470,1779697853000,-853.49,0.00012602,2]
[422977471,1779697853000,-1731.17,0.00012602,2]
[422977466,1779697853000,-500.0,0.00012602,2]
[422977463,1779697853000,-500.0,0.00012602,2]
[422977467,1779697853000,-1510.48,0.00012602,2]
[422977462,1779697853000,-677.31,0.00012602,2]
[422977461,1779697853000,-500.0,0.00012602,2]
[422977459,1779697853000,-318.25,0.00012602,2]
[422977464,1779697853000,-615.72,0.00012602,2]
[422977457,1779697853000,-1316.95,0.00012602,2]
[422977468,1779697853000,-964.48,0.00012602,2]
[422977472,1779697853000,-4179.72,0.00012602,2]
[422977474,1779697853000,-901.22,0.00012602,2]
[422977481,1779697853000,-500.0,0.00012602,2]
[422977480,1779697853000,-1939.88,0.00012602,2]
[422977473,1779697853000,-500.0,0.00012602,2]
[422977477,1779697853000,-848.43,0.00012602,2]
[422977479,1779697853000,-2065.05,0.00012602,2]
[422977475,1779697853000,-751.98,0.00012602,2]
[422977483,1779697853000,-2485.17,0.00012602,2]
[422977482,1779697853000,-1429.06,0.00012602,2]
[422977476,1779697853000,-1364.15,0.00012602,2]
[422977426,1779697853000,-762.647378,0.00012329,2]
[422977465,1779697853000,-4357.7,0.00012602,2]
[422977453,1779697853000,-622.33,0.00012602,2]
[422977478,1779697853000,-1276.56,0.00012602,2]
[422977458,1779697853000,-554.67,0.00012602,2]
[422977454,1779697853000,-500.0,0.00012602,2]
[422977432,1779697853000,-500.0,0.00012602,2]
[422977424,1779697853000,-762.647372,0.00012329,2]
[422977423,1779697853000,-762.647372,0.00012329,2]
[422977429,1779697853000,-500.0,0.00012602,2]
[422977430,1779697853000,-703.8,0.00012602,2]
[422977444,1779697853000,-500.0,0.00012602,2]
[422977434,1779697853000,-920.97,0.00012602,2]
[422977437,1779697853000,-500.0,0.00012602,2]
[422977436,1779697853000,-834.81,0.00012602,2]
[422977435,1779697853000,-239.65,0.00012602,2]
[422977433,1779697853000,-866.08,0.00012602,2]
[422977438,1779697853000,-500.0,0.00012602,2]
[422977422,1779697853000,-762.647372,0.00012329,2]
[422977445,1779697853000,-1118.85,0.00012602,2]
[422977451,1779697853000,-448.58,0.00012602,2]
[422977448,1779697853000,-609.5,0.00012602,2]
[422977449,1779697853000,-546.49,0.00012602,2]
[422977446,1779697853000,-515.81,0.00012602,2]
[422977450,1779697853000,-1132.43,0.00012602,2]
[422977452,1779697853000,-679.4127,0.00012602,2]
[422977443,1779697853000,-500.0,0.00012602,2]
[422977439,1779697853000,-743.05,0.00012602,2]
[422977441,1779697853000,-500.0,0.00012602,2]
[422977440,1779697853000,-873.33,0.00012602,2]
[422977442,1779697853000,-1171.11,0.00012602,2]
[422977447,1779697853000,-500.0,0.00012602,2]
[422977521,1779697854000,-546.49,0.00012876,2]
[422977519,1779697854000,-500.0,0.00012876,2]
[422977520,1779697854000,-609.5,0.00012876,2]
[422977512,1779697854000,-873.33,0.00012876,2]
[422977517,1779697854000,-1118.85,0.00012876,2]
[422977513,1779697854000,-500.0,0.00012876,2]
[422977523,1779697854000,-679.4127,0.00012876,2]
[422977516,1779697854000,-500.0,0.00012876,2]
[422977522,1779697854000,-1132.43,0.00012876,2]
[422977514,1779697854000,-1171.11,0.00012876,2]
[422977518,1779697854000,-515.81,0.00012876,2]
[422977524,1779697854000,-622.33,0.00012876,2]
[422977528,1779697854000,-1316.95,0.00012876,2]
[422977529,1779697854000,-554.67,0.00012876,2]
[422977526,1779697854000,-620.28,0.00012876,2]
[422977534,1779697854000,-4357.7,0.00012876,2]
[422977535,1779697854000,-236.48,0.00012876,2]
[422977532,1779697854000,-500.0,0.00012876,2]
[422977531,1779697854000,-677.31,0.00012876,2]
[422977530,1779697854000,-1257.68,0.00012876,2]
[422977525,1779697854000,-500.0,0.00012876,2]
[422977536,1779697854000,-1510.48,0.00012876,2]
[422977533,1779697854000,-615.72,0.00012876,2]
[422977515,1779697854000,-500.0,0.00012876,2]
[422977538,1779697854000,-2964.55,0.00012876,2]
[422977527,1779697854000,-500.0,0.00012876,2]
[422977511,1779697854000,-743.05,0.00012876,2]
[422977495,1779697854000,-1376.44,0.00012602,2]
[422977508,1779697854000,-834.81,0.00012876,2]
[422977548,1779697854000,-2065.05,0.00012876,2]
[422977484,1779697854000,-1099.99,0.00012602,2]
[422977486,1779697854000,-500.0,0.00012602,2]
[422977496,1779697854000,-856.54,0.00012602,2]
[422977497,1779697854000,-500.0,0.00012602,2]
[422977488,1779697854000,-17098.84,0.00012602,2]
[422977485,1779697854000,-1210.42,0.00012602,2]
[422977489,1779697854000,-500.0,0.00012602,2]
[422977491,1779697854000,-625.28,0.00012602,2]
[422977490,1779697854000,-1760.86,0.00012602,2]
[422977487,1779697854000,-689.81,0.00012602,2]
[422977493,1779697854000,-5088.12,0.00012602,2]
[422977494,1779697854000,-635.84,0.00012602,2]
[422977492,1779697854000,-2458.36,0.00012602,2]
[422977499,1779697854000,-1590.83,0.00012602,2]
[422977498,1779697854000,-4115.35,0.00012602,2]
[422977500,1779697854000,-801.0163,0.00012876,2]
[422977502,1779697854000,-703.8,0.00012876,2]
[422977506,1779697854000,-153.059019,0.00012876,2]
[422977503,1779697854000,-500.0,0.00012876,2]
[422977505,1779697854000,-866.08,0.00012876,2]
[422977509,1779697854000,-500.0,0.00012876,2]
[422977510,1779697854000,-363.58,0.00012876,2]
[422977504,1779697854000,-500.0,0.00012876,2]
[422977501,1779697854000,-583.25,0.00012876,2]
[422977507,1779697854000,-920.97,0.00012876,2]
[422977549,1779697854000,-1939.88,0.00012876,2]
[422977545,1779697854000,-1364.15,0.00012876,2]
[422977537,1779697854000,-964.48,0.00012876,2]
[422977572,1779697854000,-500.0,0.0001315,2]
[422977574,1779697854000,-866.08,0.0001315,2]
[422977573,1779697854000,-194.4,0.0001315,2]
[422977576,1779697854000,-834.81,0.0001315,2]
[422977575,1779697854000,-920.97,0.0001315,2]
[422977578,1779697854000,-743.05,0.0001315,2]
[422977577,1779697854000,-500.0,0.0001315,2]
[422977579,1779697854000,-873.33,0.0001315,2]
[422977581,1779697854000,-1171.11,0.0001315,2]
[422977584,1779697854000,-1118.85,0.0001315,2]
[422977582,1779697854000,-500.0,0.0001315,2]
[422977583,1779697854000,-500.0,0.0001315,2]
[422977570,1779697854000,-798.0044,0.0001315,2]
[422977587,1779697854000,-609.5,0.0001315,2]
[422977586,1779697854000,-500.0,0.0001315,2]
[422977585,1779697854000,-515.81,0.0001315,2]
[422977588,1779697854000,-546.49,0.0001315,2]
[422977589,1779697854000,-1132.43,0.0001315,2]
[422977590,1779697854000,-682.4246,0.0001315,2]
[422977543,1779697854000,-901.22,0.00012876,2]
[422977592,1779697854000,-500.0,0.0001315,2]
[422977594,1779697854000,-500.0,0.0001315,2]
[422977596,1779697854000,-554.67,0.0001315,2]
[422977593,1779697854000,-620.28,0.0001315,2]
[422977595,1779697854000,-1316.95,0.0001315,2]
[422977597,1779697854000,-1257.68,0.0001315,2]
[422977580,1779697854000,-500.0,0.0001315,2]
[422977571,1779697854000,-703.8,0.0001315,2]
[422977591,1779697854000,-622.33,0.0001315,2]
[422977568,1779697854000,-1590.83,0.00012876,2]
[422977569,1779697854000,-3011.0,0.00013,2]
[422977544,1779697854000,-751.98,0.00012876,2]
[422977541,1779697854000,-4179.72,0.00012876,2]
[422977540,1779697854000,-1731.17,0.00012876,2]
[422977547,1779697854000,-1276.56,0.00012876,2]
[422977542,1779697854000,-168.9,0.00012876,2]
[422977546,1779697854000,-848.43,0.00012876,2]
[422977550,1779697854000,-500.0,0.00012876,2]
[422977551,1779697854000,-1429.06,0.00012876,2]
[422977553,1779697854000,-1099.99,0.00012876,2]
[422977552,1779697854000,-2485.17,0.00012876,2]
[422977554,1779697854000,-1210.42,0.00012876,2]
[422977539,1779697854000,-853.49,0.00012876,2]
[422977561,1779697854000,-2458.36,0.00012876,2]
[422977566,1779697854000,-500.0,0.00012876,2]
[422977562,1779697854000,-5088.12,0.00012876,2]
[422977564,1779697854000,-1376.44,0.00012876,2]
[422977558,1779697854000,-416.28416956,0.00012876,2]
[422977557,1779697854000,-17098.84,0.00012876,2]
[422977565,1779697854000,-856.54,0.00012876,2]
[422977560,1779697854000,-625.28,0.00012876,2]
[422977563,1779697854000,-635.84,0.00012876,2]
[422977559,1779697854000,-1760.86,0.00012876,2]
[422977555,1779697854000,-500.0,0.00012876,2]
[422977556,1779697854000,-689.81,0.00012876,2]
[422977567,1779697854000,-4115.35,0.00012876,2]
[422977618,1779697855000,-1099.99,0.0001315,2]
[422977617,1779697855000,-2485.17,0.0001315,2]
[422977629,1779697855000,-856.54,0.0001315,2]
[422977624,1779697855000,-625.28,0.0001315,2]
[422977626,1779697855000,-5088.12,0.0001315,2]
[422977627,1779697855000,-635.84,0.0001315,2]
[422977632,1779697855000,-1590.83,0.0001315,2]
[422977630,1779697855000,-500.0,0.0001315,2]
[422977633,1779697855000,-229.3295,0.00013287,2]
[422977636,1779697855000,-866.08,0.00013424,2]
[422977634,1779697855000,-703.8,0.00013424,2]
[422977628,1779697855000,-1376.44,0.0001315,2]
[422977637,1779697855000,-1109.5217,0.00013424,2]
[422977635,1779697855000,-500.0,0.00013424,2]
[422977625,1779697855000,-2458.36,0.0001315,2]
[422977641,1779697855000,-743.05,0.00013424,2]
[422977639,1779697855000,-834.81,0.00013424,2]
[422977619,1779697855000,-1210.42,0.0001315,2]
[422977640,1779697855000,-500.0,0.00013424,2]
[422977631,1779697855000,-4115.35,0.0001315,2]
[422977620,1779697855000,-500.0,0.0001315,2]
[422977603,1779697855000,-964.48,0.0001315,2]
[422977623,1779697855000,-1760.86,0.0001315,2]
[422977638,1779697855000,-920.97,0.00013424,2]
[422977599,1779697855000,-500.0,0.0001315,2]
[422977598,1779697855000,-677.31,0.0001315,2]
[422977601,1779697855000,-4357.7,0.0001315,2]
[422977611,1779697855000,-848.43,0.0001315,2]
[422977602,1779697855000,-1510.48,0.0001315,2]
[422977600,1779697855000,-615.72,0.0001315,2]
[422977607,1779697855000,-4179.72,0.0001315,2]
[422977604,1779697855000,-2964.55,0.0001315,2]
[422977606,1779697855000,-1731.17,0.0001315,2]
[422977609,1779697855000,-751.98,0.0001315,2]
[422977610,1779697855000,-1364.15,0.0001315,2]
[422977608,1779697855000,-901.22,0.0001315,2]
[422977612,1779697855000,-1276.56,0.0001315,2]
[422977614,1779697855000,-1939.88,0.0001315,2]
[422977621,1779697855000,-689.81,0.0001315,2]
[422977613,1779697855000,-2065.05,0.0001315,2]
[422977615,1779697855000,-431.31,0.0001315,2]
[422977616,1779697855000,-1429.06,0.0001315,2]
[422977622,1779697855000,-17098.84,0.0001315,2]
[422977646,1779697855000,-500.0,0.00013424,2]
[422977605,1779697855000,-853.49,0.0001315,2]
[422977647,1779697855000,-1118.85,0.00013424,2]
[422977667,1779697855000,-853.49,0.00013424,2]
[422977665,1779697855000,-964.48,0.00013424,2]
[422977672,1779697855000,-1364.15,0.00013424,2]
[422977671,1779697855000,-751.98,0.00013424,2]
[422977674,1779697855000,-1276.56,0.00013424,2]
[422977676,1779697855000,-1939.88,0.00013424,2]
[422977673,1779697855000,-848.43,0.00013424,2]
[422977677,1779697855000,-1429.06,0.00013424,2]
[422977675,1779697855000,-2065.05,0.00013424,2]
[422977668,1779697855000,-1731.17,0.00013424,2]
[422977679,1779697855000,-1099.99,0.00013424,2]
[422977681,1779697855000,-515.22,0.00013424,2]
[422977683,1779697855000,-17098.84,0.00013424,2]
[422977682,1779697855000,-689.81,0.00013424,2]
[422977686,1779697855000,-2458.36,0.00013424,2]
[422977684,1779697855000,-1760.86,0.00013424,2]
[422977685,1779697855000,-625.28,0.00013424,2]
[422977687,1779697855000,-5088.12,0.00013424,2]
[422977688,1779697855000,-635.84,0.00013424,2]
[422977645,1779697855000,-500.0,0.00013424,2]
[422977680,1779697855000,-1210.42,0.00013424,2]
[422977664,1779697855000,-1510.48,0.00013424,2]
[422977678,1779697855000,-2485.17,0.00013424,2]
[422977666,1779697855000,-2964.55,0.00013424,2]
[422977669,1779697855000,-4179.72,0.00013424,2]
[422977644,1779697855000,-1171.11,0.00013424,2]
[422977642,1779697855000,-873.33,0.00013424,2]
[422977643,1779697855000,-500.0,0.00013424,2]
[422977648,1779697855000,-515.81,0.00013424,2]
[422977649,1779697855000,-500.0,0.00013424,2]
[422977651,1779697855000,-546.49,0.00013424,2]
[422977652,1779697855000,-1132.43,0.00013424,2]
[422977650,1779697855000,-609.5,0.00013424,2]
[422977654,1779697855000,-500.0,0.00013424,2]
[422977653,1779697855000,-622.33,0.00013424,2]
[422977662,1779697855000,-615.72,0.00013424,2]
[422977658,1779697855000,-554.67,0.00013424,2]
[422977657,1779697855000,-1316.95,0.00013424,2]
[422977656,1779697855000,-500.0,0.00013424,2]
[422977655,1779697855000,-620.28,0.00013424,2]
[422977659,1779697855000,-1257.68,0.00013424,2]
[422977660,1779697855000,-677.31,0.00013424,2]
[422977663,1779697855000,-4357.7,0.00013424,2]
[422977661,1779697855000,-500.0,0.00013424,2]
[422977670,1779697855000,-901.22,0.00013424,2]
[422977723,1779697856000,-4357.7,0.00013698,2]
[422977721,1779697856000,-201.21,0.00013698,2]
[422977719,1779697856000,-1257.68,0.00013698,2]
[422977717,1779697856000,-1316.95,0.00013698,2]
[422977712,1779697856000,-1132.43,0.00013698,2]
[422977715,1779697856000,-620.28,0.00013698,2]
[422977718,1779697856000,-554.67,0.00013698,2]
[422977722,1779697856000,-615.72,0.00013698,2]
[422977720,1779697856000,-677.31,0.00013698,2]
[422977724,1779697856000,-1510.48,0.00013698,2]
[422977734,1779697856000,-1276.56,0.00013698,2]
[422977726,1779697856000,-2964.55,0.00013698,2]
[422977727,1779697856000,-853.49,0.00013698,2]
[422977730,1779697856000,-901.22,0.00013698,2]
[422977729,1779697856000,-4179.72,0.00013698,2]
[422977731,1779697856000,-751.98,0.00013698,2]
[422977732,1779697856000,-1364.15,0.00013698,2]
[422977733,1779697856000,-848.43,0.00013698,2]
[422977735,1779697856000,-2065.05,0.00013698,2]
[422977737,1779697856000,-1429.06,0.00013698,2]
[422977714,1779697856000,-500.0,0.00013698,2]
[422977725,1779697856000,-964.48,0.00013698,2]
[422977716,1779697856000,-500.0,0.00013698,2]
[422977690,1779697856000,-856.54,0.00013424,2]
[422977711,1779697856000,-546.49,0.00013698,2]
[422977689,1779697856000,-1376.44,0.00013424,2]
[422977736,1779697856000,-1939.88,0.00013698,2]
[422977693,1779697856000,-1590.83,0.00013424,2]
[422977692,1779697856000,-4115.35,0.00013424,2]
[422977694,1779697856000,-703.8,0.00013698,2]
[422977691,1779697856000,-500.0,0.00013424,2]
[422977695,1779697856000,-450.0,0.00013698,2]
[422977696,1779697856000,-866.08,0.00013698,2]
[422977697,1779697856000,-1109.5217,0.00013698,2]
[422977699,1779697856000,-834.81,0.00013698,2]
[422977713,1779697856000,-622.33,0.00013698,2]
[422977698,1779697856000,-920.97,0.00013698,2]
[422977701,1779697856000,-743.05,0.00013698,2]
[422977703,1779697856000,-500.0,0.00013698,2]
[422977706,1779697856000,-500.0,0.00013698,2]
[422977705,1779697856000,-500.0,0.00013698,2]
[422977708,1779697856000,-515.81,0.00013698,2]
[422977702,1779697856000,-873.33,0.00013698,2]
[422977710,1779697856000,-609.5,0.00013698,2]
[422977704,1779697856000,-1171.11,0.00013698,2]
[422977709,1779697856000,-500.0,0.00013698,2]
[422977707,1779697856000,-1118.85,0.00013698,2]
[422977700,1779697856000,-267.8,0.00013698,2]
[422977738,1779697856000,-2485.17,0.00013698,2]
[422977728,1779697856000,-1731.17,0.00013698,2]
[422977742,1779697856000,-17098.84,0.00013698,2]
[422977764,1779697856000,-151.0,0.00013699,2]
[422977763,1779697856000,-151.0,0.00013699,2]
[422977769,1779697856000,-151.0,0.00013699,2]
[422977772,1779697856000,-151.0,0.00013699,2]
[422977771,1779697856000,-167.307502,0.00013699,2]
[422977777,1779697856000,-1109.5217,0.00013972,2]
[422977770,1779697856000,-151.0,0.00013699,2]
[422977776,1779697856000,-866.08,0.00013972,2]
[422977773,1779697856000,-169.83766405,0.00013699,7]
[422977774,1779697856000,-339.6753281,0.00013699,7]
[422977779,1779697856000,-834.81,0.00013972,2]
[422977780,1779697856000,-743.05,0.00013972,2]
[422977775,1779697856000,-703.8,0.00013972,2]
[422977782,1779697856000,-500.0,0.00013972,2]
[422977781,1779697856000,-873.33,0.00013972,2]
[422977783,1779697856000,-1171.11,0.00013972,2]
[422977785,1779697856000,-500.0,0.00013972,2]
[422977784,1779697856000,-211.14,0.00013972,2]
[422977786,1779697856000,-1118.85,0.00013972,2]
[422977788,1779697856000,-500.0,0.00013972,2]
[422977787,1779697856000,-515.81,0.00013972,2]
[422977789,1779697856000,-609.5,0.00013972,2]
[422977740,1779697856000,-1210.42,0.00013698,2]
[422977761,1779697856000,-151.0,0.00013699,2]
[422977760,1779697856000,-151.0,0.00013699,2]
[422977778,1779697856000,-920.97,0.00013972,2]
[422977768,1779697856000,-151.0,0.00013699,2]
[422977741,1779697856000,-689.81,0.00013698,2]
[422977762,1779697856000,-151.0,0.00013699,2]
[422977739,1779697856000,-1099.99,0.00013698,2]
[422977743,1779697856000,-1760.86,0.00013698,2]
[422977745,1779697856000,-2458.36,0.00013698,2]
[422977748,1779697856000,-1376.44,0.00013698,2]
[422977746,1779697856000,-5088.12,0.00013698,2]
[422977747,1779697856000,-635.84,0.00013698,2]
[422977755,1779697856000,-151.0,0.00013699,2]
[422977752,1779697856000,-1590.83,0.00013698,2]
[422977753,1779697856000,-1000.0,0.00013699,2]
[422977744,1779697856000,-625.28,0.00013698,2]
[422977756,1779697856000,-151.0,0.00013699,2]
[422977766,1779697856000,-151.0,0.00013699,2]
[422977750,1779697856000,-500.0,0.00013698,2]
[422977767,1779697856000,-151.0,0.00013699,2]
[422977758,1779697856000,-151.0,0.00013699,2]
[422977759,1779697856000,-151.0,0.00013699,2]
[422977765,1779697856000,-151.0,0.00013699,2]
[422977754,1779697856000,-151.0,0.00013699,2]
[422977749,1779697856000,-856.54,0.00013698,2]
[422977751,1779697856000,-4115.35,0.00013698,2]
[422977757,1779697856000,-151.0,0.00013699,2]
[422977827,1779697857000,-856.54,0.00013972,2]
[422977828,1779697857000,-500.0,0.00013972,2]
[422977833,1779697857000,-1109.5217,0.00014246,2]
[422977830,1779697857000,-1590.83,0.00013972,2]
[422977832,1779697857000,-866.08,0.00014246,2]
[422977821,1779697857000,-1760.86,0.00013972,2]
[422977823,1779697857000,-2458.36,0.00013972,2]
[422977826,1779697857000,-1376.44,0.00013972,2]
[422977825,1779697857000,-635.84,0.00013972,2]
[422977822,1779697857000,-625.28,0.00013972,2]
[422977836,1779697857000,-743.05,0.00014246,2]
[422977831,1779697857000,-703.8,0.00014246,2]
[422977829,1779697857000,-4115.35,0.00013972,2]
[422977835,1779697857000,-834.81,0.00014246,2]
[422977846,1779697857000,-1132.43,0.00014246,2]
[422977834,1779697857000,-920.97,0.00014246,2]
[422977838,1779697857000,-215.6,0.00014246,2]
[422977844,1779697857000,-609.5,0.00014246,2]
[422977840,1779697857000,-591.6,0.00014246,2]
[422977839,1779697857000,-1171.11,0.00014246,2]
[422977841,1779697857000,-1118.85,0.00014246,2]
[422977842,1779697857000,-515.81,0.00014246,2]
[422977843,1779697857000,-600.1,0.00014246,2]
[422977845,1779697857000,-546.49,0.00014246,2]
[422977848,1779697857000,-500.0,0.00014246,2]
[422977847,1779697857000,-622.33,0.00014246,2]
[422977857,1779697857000,-1510.48,0.00014246,2]
[422977824,1779697857000,-5088.12,0.00013972,2]
[422977837,1779697857000,-873.33,0.00014246,2]
[422977820,1779697857000,-17098.84,0.00013972,2]
[422977795,1779697857000,-500.0,0.00013972,2]
[422977814,1779697857000,-1939.88,0.00013972,2]
[422977856,1779697857000,-4357.7,0.00014246,2]
[422977792,1779697857000,-622.33,0.00013972,2]
[422977793,1779697857000,-500.0,0.00013972,2]
[422977790,1779697857000,-546.49,0.00013972,2]
[422977791,1779697857000,-1132.43,0.00013972,2]
[422977794,1779697857000,-620.28,0.00013972,2]
[422977799,1779697857000,-677.31,0.00013972,2]
[422977805,1779697857000,-853.49,0.00013972,2]
[422977797,1779697857000,-554.67,0.00013972,2]
[422977798,1779697857000,-1257.68,0.00013972,2]
[422977796,1779697857000,-1316.95,0.00013972,2]
[422977806,1779697857000,-1731.17,0.00013972,2]
[422977801,1779697857000,-4357.7,0.00013972,2]
[422977816,1779697857000,-2485.17,0.00013972,2]
[422977802,1779697857000,-1510.48,0.00013972,2]
[422977803,1779697857000,-964.48,0.00013972,2]
[422977804,1779697857000,-2964.55,0.00013972,2]
[422977807,1779697857000,-4179.72,0.00013972,2]
[422977818,1779697857000,-1210.42,0.00013972,2]
[422977819,1779697857000,-689.81,0.00013972,2]
[422977811,1779697857000,-848.43,0.00013972,2]
[422977810,1779697857000,-1364.15,0.00013972,2]
[422977808,1779697857000,-901.22,0.00013972,2]
[422977809,1779697857000,-751.98,0.00013972,2]
[422977813,1779697857000,-2065.05,0.00013972,2]
[422977812,1779697857000,-1276.56,0.00013972,2]
[422977815,1779697857000,-1429.06,0.00013972,2]
[422977817,1779697857000,-1099.99,0.00013972,2]
[422977800,1779697857000,-615.72,0.00013972,2]
[422977850,1779697857000,-242.12,0.00014246,2]
[422977913,1779697857000,-1731.25,0.0001452,2]
[422977854,1779697857000,-677.31,0.00014246,2]
[422977886,1779697857000,-231.0,0.00014356,2]
[422977887,1779697857000,-703.8,0.0001452,2]
[422977885,1779697857000,-1590.83,0.00014246,2]
[422977888,1779697857000,-866.31,0.0001452,2]